bitfinex/quotes_SOLUSD_20240906
["timestamp","ask_amount","ask_price","bid_price","bid_amount"]
[1725625259826,1.33793094,130.19,130.18,29.5718]
[1725625262943,1.33793094,130.19,130.18,15.5553]
[1725625263235,9.01913094,130.19,130.15,6.0065]
[1725625263403,20.0,130.18,130.15,13.6897]
[1725625263832,1.33793094,130.19,130.17,7.6822]
[1725625264428,1.33793094,130.19,130.16,26.8887]
[1725625265812,1.33793094,130.19,130.16,19.2061]
[1725625267338,1.33793094,130.19,130.16,26.8888]
[1725625270840,9.01893094,130.19,130.15,7.6833]
[1725625271032,45.0,130.18,130.14,23.9152]
[1725625271340,65.0,130.18,130.11,16.4948]
[1725625271636,65.0,130.18,130.1,19.2147]
[1725625271637,1.33841898,130.17,130.1,19.2147]
[1725625271841,7.6835,130.15,130.11,7.6856]
[1725625272053,65.0,130.14,130.11,7.6856]
[1725625272439,1.33841898,130.17,130.15,7.6833]
[1725625272638,1.33841898,130.17,130.16,7.6828]
[1725625273038,1.33841898,130.17,130.16,9.21907228]
[1725625278167,1.33841898,130.17,130.16,7.6828]
[1725625279867,1.33841898,130.17,130.15,26.8905]
[1725625280161,1.33841898,130.17,130.13,16.4948]
[1725625280376,7.6807,130.2,130.15,7.6829]
[1725625280534,65.0,130.19,130.15,7.6829]
[1725625280849,72.6811,130.19,130.15,7.6829]
[1725625281054,72.6811,130.19,130.14,19.2097]
[1725625281055,65.0,130.19,130.14,26.8935]
[1725625281258,1.3380982,130.18,130.14,26.8935]
[1725625281848,9.0198982,130.18,130.14,26.8935]
[1725625282049,20.0,130.17,130.14,26.8935]
[1725625282559,21.3380982,130.18,130.14,26.8935]
[1725625282970,21.3380982,130.18,130.15,7.6829]
[1725625283175,1.3380982,130.18,130.15,7.6829]
[1725625284671,21.3380982,130.18,130.15,7.6829]
[1725625290810,45.0,130.17,130.14,19.2097]
[1725625291128,52.6826,130.17,130.14,19.2097]
[1725625292613,29.0198982,130.18,130.14,26.8936]
[1725625293286,29.0197982,130.18,130.14,26.8935]
[1725625294684,21.3380982,130.18,130.15,7.6834]
[1725625302624,1.3380982,130.18,130.16,19.207]
[1725625302918,1.3380982,130.18,130.17,7.6822]
[1725625304215,1.3380982,130.18,130.17,9.21829352]
[1725625304413,1.3380982,130.18,130.17,47.23610664]
[1725625305613,1.3380982,130.18,130.17,45.70001312]
[1725625306000,1.3380982,130.18,130.17,29.796]
[1725625325835,20.0,130.23,130.2,7.6802]
[1725625326748,20.0,130.23,130.19,7.6809]
[1725625326749,27.6789,130.23,130.19,7.6809]
[1725625329070,52.6793,130.22,130.18,26.8853]
[1725625330136,7.6793,130.22,130.19,7.681]
[1725625330351,27.6789,130.23,130.19,7.681]
[1725625330851,2.17711636,130.27,130.16,15.89107163]
[1725625331058,16.5258,130.28,130.19,16.4784]
[1725625331250,7.6773,130.26,130.22,26.8768]
[1725625331945,7.6773,130.26,130.23,0.62321311]
[1725625332135,7.6781,130.24,130.2,7.6801]
[1725625332448,16.5258,130.28,130.19,19.2018]
[1725625332449,7.6793,130.22,130.19,19.2018]
[1725625332632,7.6793,130.22,130.18,7.6812]
[1725625334150,1.33762103,130.21,130.18,7.6812]
[1725625337738,1.33762103,130.21,130.18,26.8852]
[1725625338572,1.33762103,130.21,130.19,7.6806]
[1725625338936,1.33762103,130.21,130.2,7.6804]
[1725625343458,1.33762103,130.21,130.19,7.6809]
[1725625344338,1.33762103,130.21,130.18,19.204]
[1725625344339,1.33762103,130.21,130.18,26.8855]
[1725625345265,1.33762103,130.21,130.19,7.681]
[1725625345864,1.33762103,130.21,130.2,7.6804]
[1725625352864,1.33762103,130.21,130.2,26.8816]
[1725625357672,1.33762103,130.21,130.2,42.81085883]
[1725625357876,1.33762103,130.21,130.2,138.17915913]
[1725625358043,15.1069,130.31,130.27,7.676]
[1725625358372,22.781,130.31,130.27,7.676]
[1725625358669,22.781,130.31,130.26,19.1915]
[1725625358670,15.1069,130.31,130.26,19.1915]
[1725625358847,19.1771,130.37,130.3,7.6741]
[1725625358848,23.8250205,130.35,130.3,7.6741]
[1725625359257,16.1532205,130.35,130.31,7.6738]
[1725625359964,16.1532205,130.35,130.27,19.1902]
[1725625360651,7.6722,130.34,130.29,7.6747]
[1725625360854,9.00871328,130.34,130.29,7.6747]
[1725625361858,45.0,130.33,130.29,7.6747]
[1725625362570,52.6728,130.33,130.28,7.6756]
[1725625363455,52.6728,130.33,130.29,7.6751]
[1725625363759,9.00881328,130.34,130.29,7.6751]
[1725625363961,20.0,130.33,130.29,7.6751]
[1725625364166,9.00881328,130.34,130.3,7.6745]
[1725625364573,1.33651328,130.34,130.3,7.6745]
[1725625364878,21.33651328,130.34,130.3,7.6745]
[1725625365644,1.33651328,130.34,130.31,7.6739]
[1725625366047,1.33651328,130.34,130.3,7.6745]
[1725625366380,46.33651328,130.34,130.3,7.6744]
[1725625367669,1.33651328,130.34,130.31,7.6737]
[1725625368881,0.8464205,130.35,130.3,37.53817163]
[1725625369088,0.8464205,130.35,130.34,7.6722]
[1725625370956,2.1823588,130.35,130.34,7.6722]
[1725625372682,2.1823588,130.35,130.34,25.09734607]
[1725625373160,2.1823588,130.35,130.34,23.56327163]
[1725625373355,0.8464205,130.35,130.34,23.56327163]
[1725625373764,0.8464205,130.35,130.34,25.09700357]
[1725625374062,0.8464205,130.35,130.34,91.55217163]
[1725625374459,0.8464205,130.35,130.34,134.68217163]
[1725625374662,2.05e-05,130.35,130.34,134.68217163]
[1725625375082,2.05e-05,130.35,130.34,111.55217163]
[1725625377595,2.05e-05,130.35,130.34,111.95217163]
[1725625380563,20.0068205,130.48,130.44,7.6662]
[1725625380564,0.8464205,130.48,130.44,7.6662]
[1725625380878,8.5105205,130.48,130.43,26.8331]
[1725625381084,0.8464205,130.48,130.43,19.1664]
[1725625381270,0.8464205,130.48,130.45,26.8296]
[1725625382073,1.33498872,130.47,130.45,26.8296]
[1725625386000,1.33498872,130.47,130.43,7.6668]
[1725625386196,7.6653,130.46,130.42,19.168]
[1725625386370,45.0,130.45,130.42,26.8354]
[1725625386565,45.0,130.46,130.42,19.168]
[1725625386890,52.6653,130.46,130.42,26.8353]
[1725625388609,1.33498872,130.47,130.44,7.6662]
[1725625388991,1.33498872,130.47,130.44,19.1653]
[1725625389191,1.33498872,130.47,130.44,26.8311]
[1725625389409,1.33498872,130.47,130.45,7.6655]
[1725625389604,1.33498872,130.47,130.46,7.6651]
[1725625389994,0.8464205,130.48,130.47,7.6645]
[1725625390199,0.8464205,130.48,130.47,66.41097645]
[1725625390505,0.8464205,130.48,130.47,26.8259]
[1725625392005,0.8464205,130.48,130.47,66.41097645]
[1725625392309,0.8464205,130.48,130.47,181.41097645]
[1725625393119,2.1806998,130.48,130.47,131.41097645]
[1725625394599,8.5033205,130.61,130.55,7.6598]
[1725625394800,7.6571,130.6,130.55,7.6598]
[1725625395118,1.33387833,130.6,130.55,7.6598]
[1725625395799,8.99087833,130.6,130.55,7.6598]
[1725625396701,0.8464205,130.61,130.54,7.6604]
[1725625396702,52.6575,130.59,130.54,7.6604]
[1725625397813,1.3340062,130.58,130.54,7.6604]
[1725625399101,8.9922062,130.58,130.53,26.8121]
[1725625400821,1.3340062,130.58,130.5,19.1564]
[1725625401334,7.6587,130.57,130.53,7.661]
[1725625401806,8.9922062,130.58,130.53,7.661]
[1725625404706,8.9922062,130.58,130.54,7.6603]
[1725625405030,1.3340062,130.58,130.52,26.815]
[1725625405211,7.6592,130.57,130.52,26.815]
[1725625405404,7.6592,130.57,130.52,25.67774765]
[1725625406528,7.6594,130.56,130.52,25.67774765]
[1725625407109,7.6588,130.57,130.53,9.19300444]
[1725625407406,8.9922062,130.58,130.54,7.6603]
[1725625408018,1.3340062,130.58,130.54,19.15]
[1725625408415,1.3340062,130.58,130.55,7.6597]
[1725625408620,7.6574,130.6,130.55,7.6597]
[1725625409004,7.6576,130.59,130.55,7.6597]
[1725625410523,1.33398838,130.58,130.55,7.6597]
[1725625410901,1.33398838,130.58,130.54,7.66]
[1725625411101,1.33398838,130.58,130.51,39.58507645]
[1725625411306,8.99208838,130.58,130.54,7.6603]
[1725625411957,8.99208838,130.58,130.53,26.8127]
[1725625412107,8.99208838,130.58,130.53,19.1518]
[1725625412721,1.33398838,130.58,130.54,7.6603]
[1725625415206,1.33398838,130.58,130.53,19.1518]
[1725625415405,1.33398838,130.58,130.55,19.1486]
[1725625415836,1.33398838,130.58,130.57,7.6587]
[1725625416220,1.33398838,130.58,130.56,7.6591]
[1725625420336,1.33398838,130.58,130.55,26.8084]
[1725625420912,1.33398838,130.58,130.57,7.6587]
[1725625423512,1.33398838,130.58,130.57,142.24377645]
[1725625423842,1.33398838,130.58,130.57,162.24377645]
[1725625424723,1.33398838,130.58,130.57,112.24377645]
[1725625425832,0.8464205,130.61,130.6,7.6569]
[1725625432433,0.8464205,130.61,130.6,52.6569]
[1725625434314,0.8464205,130.61,130.6,7.6569]
[1725625436340,2.17965706,130.61,130.6,7.6569]
[1725625440227,0.8464205,130.61,130.6,7.6569]
[1725625442344,0.8464205,130.61,130.57,7.6581]
[1725625442544,0.8464205,130.61,130.58,7.6575]
[1725625442755,0.8464205,130.61,130.6,7.6569]
[1725625442930,0.8464205,130.61,130.59,26.8009]
[1725625443257,0.8464205,130.61,130.59,19.1436]
[1725625446143,0.8464205,130.61,130.58,7.6579]
[1725625448774,0.8464205,130.61,130.56,19.1474]
[1725625448936,0.8464205,130.61,130.57,7.6585]
[1725625449133,8.5032205,130.61,130.56,26.8066]
[1725625450264,8.5032205,130.61,130.57,7.6587]
[1725625451163,0.8464205,130.61,130.58,7.658]
[1725625452063,0.8464205,130.61,130.57,7.6585]
[1725625452452,8.5028205,130.61,130.57,7.6585]
[1725625452849,0.8464205,130.61,130.57,7.6585]
[1725625453553,8.5028205,130.61,130.57,7.6585]
[1725625454363,0.8464205,130.61,130.57,7.6585]
[1725625454867,0.8464205,130.61,130.58,7.6579]
[1725625455244,0.8464205,130.61,130.59,7.6574]
[1725625457339,0.8464205,130.61,130.58,26.8028]
[1725625457864,8.5029205,130.61,130.57,7.6586]
[1725625458247,0.8464205,130.61,130.6,7.6569]
[1725625461269,0.8464205,130.61,130.55,77.79641266]
[1725625461270,0.8464205,130.61,130.58,7.658]
[1725625461937,0.8464205,130.61,130.59,7.6575]
[1725625463048,0.8464205,130.61,130.58,26.803]
[1725625463762,8.5028205,130.61,130.58,19.1451]
[1725625465653,0.8464205,130.61,130.58,26.8031]
[1725625466178,0.8464205,130.61,130.59,7.6573]
[1725625466873,0.8464205,130.61,130.58,26.8028]
[1725625468774,0.8464205,130.61,130.59,7.6574]
[1725625469977,0.8464205,130.61,130.55,57.4463]
[1725625470269,8.5031205,130.61,130.57,7.6583]
[1725625470851,0.8464205,130.61,130.57,26.8049]
[1725625471053,45.8464205,130.61,130.58,7.658]
[1725625473371,53.5028205,130.61,130.57,26.8051]
[1725625474987,0.8464205,130.61,130.56,15.80122616]
[1725625475149,0.8464205,130.61,130.6,7.6569]
[1725625481258,0.8464205,130.61,130.6,9.18777009]
[1725625481676,0.8464205,130.61,130.6,7.6569]
[1725625483356,2.05e-05,130.61,130.6,23.45812616]
[1725625484473,2.05e-05,130.61,130.6,29.72452616]
[1725625484663,2.05e-05,130.61,130.6,74.72452616]
[1725625484851,2.05e-05,130.61,130.6,29.72452616]
[1725625487384,2.05e-05,130.61,130.6,74.72452616]
[1725625487684,2.16267708,130.68,130.64,7.6541]
[1725625487865,7.6518,130.69,130.64,7.6541]
[1725625488484,7.6518,130.69,130.65,7.6539]
[1725625488664,45.0,130.68,130.65,7.6539]
[1725625490783,52.6524,130.68,130.64,7.6546]
[1725625491960,52.6524,130.68,130.6,6.2664]
[1725625491961,15.7732,130.71,130.66,19.1335]
[1725625492762,7.6511,130.7,130.66,26.7865]
[1725625493675,23.4238,130.71,130.67,7.6523]
[1725625494573,23.4238,130.71,130.66,26.7868]
[1725625494574,7.6511,130.7,130.66,26.7868]
[1725625495178,23.4241,130.71,130.67,7.6528]
[1725625495881,52.6512,130.7,130.66,26.7868]
[1725625496467,7.6517,130.69,130.66,19.1335]
[1725625497287,52.6512,130.7,130.66,26.7869]
[1725625497487,15.7732,130.71,130.66,19.1335]
[1725625497871,7.6511,130.7,130.66,26.7865]
[1725625498299,15.7732,130.71,130.68,19.1298]
[1725625498508,7.6501,130.72,130.68,26.7819]
[1725625498665,7.6505,130.71,130.65,19.1341]
[1725625498866,7.6505,130.71,130.67,7.6527]
[1725625499273,7.6513,130.7,130.65,26.7877]
[1725625500193,7.6513,130.7,130.66,7.6532]
[1725625500407,19.06314219,130.74,130.64,15.4201]
[1725625500691,7.6524,130.68,130.63,7.655]
[1725625500867,7.6517,130.69,130.64,19.136]
[1725625501071,7.6512,130.7,130.65,7.6536]
[1725625501299,45.0,130.69,130.65,7.6536]
[1725625501498,7.6512,130.7,130.66,7.6534]
[1725625501797,7.6507,130.71,130.67,7.6528]
[1725625504295,7.65,130.72,130.67,7.6528]
[1725625504500,45.0,130.71,130.67,7.6528]
[1725625504693,52.6505,130.71,130.67,7.6528]
[1725625505400,7.6513,130.7,130.66,26.7864]
[1725625505694,7.6513,130.7,130.66,19.1331]
[1725625505998,45.0,130.69,130.66,19.1331]
[1725625506373,7.6513,130.7,130.66,26.7863]
[1725625506797,7.6507,130.71,130.67,7.6526]
[1725625509607,16.9427205,130.74,130.68,19.1294]
[1725625509905,45.0,130.73,130.68,19.1294]
[1725625511283,7.6505,130.71,130.68,19.1294]
[1725625511679,7.6512,130.7,130.66,7.6533]
[1725625511983,52.6519,130.69,130.65,26.7877]
[1725625512203,7.6519,130.69,130.65,26.7877]
[1725625513386,52.6522,130.68,130.64,7.6544]
[1725625513790,7.6517,130.69,130.65,7.6538]
[1725625514116,7.6514,130.7,130.66,7.6533]
[1725625515410,7.6505,130.71,130.67,7.6526]
[1725625520202,7.6517,130.69,130.65,7.6535]
[1725625520407,52.6526,130.68,130.64,7.6541]
[1725625520589,7.6526,130.68,130.64,7.6541]
[1725625521115,7.6517,130.69,130.65,7.6538]
[1725625521285,45.0,130.7,130.65,19.1345]
[1725625521490,7.6508,130.71,130.67,7.6528]
[1725625524094,52.6511,130.7,130.66,7.6532]
[1725625526096,45.0,130.7,130.67,7.6527]
[1725625527708,52.6511,130.7,130.67,7.6527]
[1725625528509,52.6511,130.7,130.66,7.6533]
[1725625531117,45.0,130.7,130.67,7.6528]
[1725625534522,7.6507,130.71,130.67,7.6528]
[1725625535096,45.0,130.7,130.62,40.4301]
[1725625535592,7.6544,130.65,130.61,7.6563]
[1725625535803,45.0,130.64,130.59,34.415]
[1725625536008,7.6553,130.63,130.59,34.415]
[1725625536190,7.6553,130.63,130.59,42.0723]
[1725625537006,52.6548,130.64,130.6,7.6567]
[1725625537296,52.6548,130.64,130.59,34.415]
[1725625537297,45.0,130.64,130.59,34.415]
[1725625538499,45.0,130.64,130.59,19.1427]
[1725625539428,7.6552,130.63,130.59,26.8]
[1725625541095,7.6552,130.63,130.59,19.1427]
[1725625542117,7.6552,130.63,130.59,26.8002]
[1725625542319,7.6557,130.62,130.58,7.658]
[1725625542618,7.6554,130.63,130.58,7.658]
[1725625542930,7.6582,130.58,130.53,48.7797]
[1725625543232,19.1402,130.62,130.53,41.1188]
[1725625543398,45.0,130.61,130.53,41.1188]
[1725625544424,7.6577,130.59,130.54,7.6604]
[1725625544722,45.0,130.58,130.54,7.6604]
[1725625545116,7.6577,130.59,130.54,7.6604]
[1725625545837,7.657,130.6,130.55,7.6597]
[1725625546049,15.5901,130.64,130.55,20.68106367]
[1725625546211,7.6562,130.62,130.57,7.6586]
[1725625546407,45.0,130.61,130.57,7.6586]
[1725625546834,52.6563,130.61,130.57,7.6586]
[1725625547035,52.6563,130.61,130.56,7.6591]
[1725625547740,7.6579,130.59,130.55,19.1494]
[1725625547918,45.0,130.58,130.55,19.1494]
[1725625548121,45.0,130.58,130.55,26.8091]
[1725625548318,45.0,130.59,130.55,26.8091]
[1725625549226,7.6571,130.6,130.56,9.19079444]
[1725625549413,7.6571,130.6,130.56,7.6592]
[1725625549620,7.6565,130.61,130.56,7.6592]
[1725625549842,45.0,130.6,130.56,7.6592]
[1725625550421,7.6565,130.61,130.57,7.6587]
[1725625550928,7.6559,130.62,130.57,7.6587]
[1725625551127,7.6559,130.62,130.58,7.6581]
[1725625551128,45.0,130.61,130.58,7.6581]
[1725625551329,7.6559,130.62,130.57,7.6585]
[1725625553141,15.5901,130.64,130.57,19.1465]
[1725625553346,45.0,130.63,130.57,19.1465]
[1725625554339,52.6555,130.63,130.58,7.6579]
[1725625554641,45.0,130.63,130.57,26.8051]
[1725625554957,7.6559,130.62,130.57,26.8051]
[1725625555120,45.0,130.61,130.57,26.8051]
[1725625555319,7.6556,130.63,130.58,7.6579]
[1725625555535,45.0,130.62,130.58,7.6579]
[1725625555837,45.0,130.62,130.59,7.6571]
[1725625556036,45.0,130.63,130.59,7.6571]
[1725625556435,52.6553,130.63,130.59,7.6571]
[1725625556639,52.6553,130.63,130.58,7.6579]
[1725625557526,45.0,130.63,130.57,26.805]
[1725625557726,7.6571,130.6,130.55,7.6597]
[1725625557925,45.0,130.59,130.55,7.6597]
[1725625558128,7.657,130.6,130.55,7.6597]
[1725625558455,45.0,130.59,130.55,7.6597]
[1725625559441,52.6576,130.59,130.54,19.1498]
[1725625559644,7.6581,130.58,130.54,26.8101]
[1725625559848,52.6588,130.57,130.53,21.9672]
[1725625560351,7.6576,130.59,130.54,7.6601]
[1725625560554,45.0,130.58,130.54,7.6601]
[1725625560843,45.0,130.58,130.55,1.5316808]
[1725625561317,35.489,130.62,130.57,7.6586]
[1725625561318,7.6559,130.62,130.57,7.6586]
[1725625561827,7.6552,130.63,130.58,22.3282]
[1725625562750,7.6552,130.63,130.58,29.9861]
[1725625562945,41.34345584,130.68,130.58,22.3282]
[1725625562946,7.6571,130.6,130.58,22.3282]
[1725625563146,7.6565,130.61,130.58,22.3282]
[1725625563451,19.133,130.67,130.58,29.9862]
[1725625563629,7.6551,130.64,130.59,7.6575]
[1725625563822,7.6558,130.62,130.58,49.1312]
[1725625564768,7.6554,130.63,130.58,49.1312]
[1725625564931,45.0,130.62,130.58,49.1312]
[1725625565451,7.6548,130.64,130.59,7.6574]
[1725625565747,7.6548,130.64,130.58,41.4733]
[1725625565748,7.6535,130.66,130.61,7.6562]
[1725625567243,45.0,130.65,130.61,7.6562]
[1725625567824,45.0,130.65,130.62,7.6556]
[1725625568021,45.0,130.66,130.63,7.6547]
[1725625568225,45.0,130.67,130.63,7.6547]
[1725625569928,45.0,130.67,130.63,23.7784]
[1725625570129,7.6524,130.68,130.64,7.6545]
[1725625570345,7.6518,130.69,130.64,7.6545]
[1725625570544,25.7163,130.73,130.64,19.136]
[1725625570545,7.6509,130.71,130.64,19.136]
[1725625570730,7.6515,130.7,130.65,7.6539]
[1725625571945,7.6518,130.69,130.64,26.7904]
[1725625574235,45.0,130.68,130.64,26.7904]
[1725625575358,7.6518,130.69,130.65,7.6538]
[1725625575861,7.6511,130.7,130.65,7.6538]
[1725625576859,7.6517,130.69,130.65,7.6538]
[1725625577047,45.0,130.68,130.64,26.7904]
[1725625577549,7.6512,130.7,130.66,7.6534]
[1725625577736,0.8464205,130.74,130.67,22.5652]
[1725625577938,8.4952205,130.74,130.69,7.6511]
[1725625578164,0.8464205,130.74,130.69,7.6511]
[1725625578661,7.6509,130.71,130.67,22.5652]
[1725625579046,7.6509,130.71,130.67,30.218]
[1725625579243,7.6495,130.73,130.68,7.6522]
[1725625580264,7.6495,130.73,130.69,7.6516]
[1725625580465,0.8464205,130.74,130.67,22.5652]
[1725625581265,0.8464205,130.74,130.7,19.1271]
[1725625581867,0.8464205,130.74,130.71,7.6504]
[1725625582069,8.4953205,130.74,130.7,19.1271]
[1725625582446,0.8464205,130.74,130.7,19.1271]
[1725625582745,8.4953205,130.74,130.7,19.1271]
[1725625583368,0.8464205,130.74,130.7,26.7781]
[1725625583745,0.8464205,130.74,130.7,19.1271]
[1725625584451,0.8464205,130.74,130.71,9.1801433]
[1725625584653,0.8464205,130.74,130.72,23.4356]
[1725625584853,0.8464205,130.74,130.72,29.6742]
[1725625585057,0.8464205,130.74,130.73,7.6493]
[1725625591342,7.6448,130.81,130.76,26.7659]
[1725625591547,7.6448,130.81,130.77,1.52896766]
[1725625592054,7.6448,130.81,130.76,26.7659]
[1725625592655,7.6459,130.79,130.76,19.1189]
[1725625593448,7.6454,130.8,130.76,19.1189]
[1725625593853,57.16280512,130.86,130.76,19.1189]
[1725625593854,7.6442,130.82,130.77,22.3185]
[1725625594155,7.6448,130.81,130.77,29.9653]
[1725625594360,59.36405758,130.86,130.74,7.6486]
[1725625594566,20.0,130.85,130.74,7.6486]
[1725625594750,7.6468,130.78,130.73,49.0899]
[1725625595157,20.0,130.85,130.73,22.3185]
[1725625595377,19.1067,130.85,130.75,19.1194]
[1725625596275,7.6453,130.8,130.76,7.6475]
[1725625596583,7.6459,130.79,130.75,26.7671]
[1725625596952,7.6454,130.8,130.75,26.7671]
[1725625597149,7.6454,130.8,130.76,7.6474]
[1725625597686,7.6448,130.81,130.76,7.6474]
[1725625597979,7.6448,130.81,130.77,7.6468]
[1725625598277,0.8464205,130.87,130.79,19.1143]
[1725625598579,7.6427,130.85,130.8,7.6451]
[1725625598758,7.6427,130.85,130.81,7.6446]
[1725625599282,7.6418,130.86,130.82,7.6439]
[1725625599460,7.6418,130.86,130.81,26.7557]
[1725625600479,7.6418,130.86,130.82,22.7482]
[1725625600968,7.6418,130.86,130.82,15.1044]
[1725625601763,0.8464205,130.87,130.79,7.6453]
[1725625601764,7.6434,130.84,130.79,7.6453]
[1725625603159,7.6421,130.86,130.8,20.64131384]
[1725625603366,0.8464205,130.87,130.81,7.6442]
[1725625603367,7.6425,130.85,130.81,7.6442]
[1725625604792,52.6433,130.84,130.8,19.1126]
[1725625604962,7.6436,130.83,130.8,19.1126]
[1725625605361,7.6436,130.83,130.79,7.6454]
[1725625605558,7.644,130.82,130.78,29.3586]
[1725625605870,19.9496205,130.87,130.79,19.1142]
[1725625606288,45.0,130.86,130.79,19.1142]
[1725625606785,7.6441,130.82,130.79,19.1142]
[1725625607176,7.6436,130.83,130.79,26.7598]
[1725625612504,7.6441,130.82,130.79,19.1142]
[1725625612869,19.106,130.85,130.78,21.7123]
[1725625613180,7.6446,130.82,130.78,29.3586]
[1725625613698,45.0,130.81,130.78,29.3586]
[1725625614075,7.6446,130.82,130.78,29.3586]
[1725625614374,19.106,130.85,130.78,21.7123]
[1725625614592,0.8464205,130.87,130.78,40.8279]
[1725625614893,0.8464205,130.87,130.78,21.7123]
[1725625615196,20.8464205,130.87,130.78,21.7123]
[1725625615405,7.6457,130.8,130.78,21.7123]
[1725625615703,7.6448,130.81,130.78,21.7123]
[1725625616298,7.6441,130.82,130.78,21.7123]
[1725625617180,0.8464205,130.87,130.8,15.74996576]
[1725625617392,0.8464205,130.87,130.83,22.8983]
[1725625618804,0.8464205,130.87,130.8,22.6572]
[1725625618805,7.6423,130.85,130.8,22.6572]
[1725625619181,7.6423,130.85,130.8,30.3024]
[1725625619384,7.6417,130.86,130.8,30.3024]
[1725625619598,45.0,130.85,130.8,30.3024]
[1725625620072,45.0,130.85,130.81,7.6445]
[1725625620277,52.6423,130.85,130.8,22.6572]
[1725625620594,45.0,130.85,130.8,22.6572]
[1725625620903,7.6443,130.82,130.78,15.9054]
[1725625621104,45.0,130.85,130.78,23.5518]
[1725625621490,45.0,130.86,130.78,23.5518]
[1725625622314,7.6435,130.83,130.78,23.5518]
[1725625622487,45.0,130.82,130.78,23.5518]
[1725625622686,7.6429,130.84,130.79,7.6457]
[1725625622881,7.6424,130.85,130.79,7.6457]
[1725625623183,45.0,130.84,130.79,7.6457]
[1725625623587,8.4880205,130.87,130.8,19.1128]
[1725625623781,8.4880205,130.87,130.81,6.0825]
[1725625624000,8.4880205,130.87,130.82,16.0696]
[1725625625383,8.4880205,130.87,130.82,23.7135]
[1725625625710,0.8464205,130.87,130.82,23.7135]
[1725625625890,8.4875205,130.87,130.82,23.7135]
[1725625626804,0.8464205,130.87,130.83,7.6434]
[1725625628902,0.8464205,130.87,130.82,16.0696]
[1725625629112,7.6417,130.86,130.82,16.0696]
[1725625629318,8.4876205,130.87,130.82,16.0696]
[1725625630188,8.4876205,130.87,130.82,23.7136]
[1725625630630,45.0,130.86,130.82,23.7136]
[1725625632530,45.0,130.86,130.82,16.0696]
[1725625632815,45.0,130.86,130.81,6.0825]
[1725625633518,7.6425,130.85,130.81,6.0825]
[1725625633690,52.6418,130.86,130.81,13.7271]
[1725625634188,45.0,130.86,130.81,6.0825]
[1725625634587,7.6434,130.84,130.81,6.0825]
[1725625634814,0.8464205,130.87,130.81,6.0825]
[1725625635111,0.8464205,130.87,130.81,13.727]
[1725625636108,7.643,130.84,130.81,6.0825]
[1725625636523,7.6424,130.85,130.81,6.0825]
[1725625636893,7.6417,130.86,130.81,13.727]
[1725625637919,0.8464205,130.87,130.81,6.0825]
[1725625638501,0.8464205,130.87,130.82,16.6121]
[1725625639301,8.4877205,130.87,130.82,24.2561]
[1725625640416,8.4877205,130.87,130.83,7.6433]
[1725625640806,8.4877205,130.87,130.82,24.256]
[1725625641512,7.6417,130.86,130.82,24.256]
[1725625641713,8.4875205,130.87,130.82,16.6121]
[1725625641912,0.8464205,130.87,130.85,7.6421]
[1725625642119,0.8464205,130.87,130.85,26.747]
[1725625642927,277.9876,130.98,130.89,19.0988]
[1725625643112,19.0876,130.98,130.86,79.8032]
[1725625643304,7.6386,130.92,130.87,7.641]
[1725625645320,7.639,130.91,130.87,7.641]
[1725625645514,54.9569205,131.0,130.88,18.48244811]
[1725625645805,54.9569205,131.0,130.93,39.36279273]
[1725625645806,0.8464205,131.0,130.93,39.36279273]
[1725625646007,8.4804205,131.0,130.92,26.7323]
[1725625646206,7.6354,130.97,130.91,15.7931]
[1725625646407,0.8464205,131.0,130.92,19.0946]
[1725625646617,7.6346,130.99,130.92,26.7326]
[1725625646814,0.8464205,131.0,130.92,19.0946]
[1725625647011,0.8464205,131.0,130.92,58.45739273]